Cogmind - Beta 15 @@@ ROGUE MODE // 2025.08.24 @ 18:28:24 Player: Jiber Result: Destroyed by Y-45 Defender with Beam Rifle Performance ------------- Evolutions (1) 500 Regions Visited (2) 400 Robots Destroyed (12) 60 Value Destroyed (243) 243 Prototype IDs (0) 0 Alien Tech Used (0) 0 Bonus (0) 0 TOTAL SCORE: 1203 Bonus ------- None Cogmind --------- Core Integrity 0/400 Matter 210/300 Energy 100/100 System Corruption 0% Temperature Cool (9) Movement Flying (40) Location -9/Materials Parts ------- > --- POWER (1) -------- (None) > --- PROPULSION (2) --- Flight Unit > --- UTILITY (4) ------ (None) > --- WEAPON (2) ------- Improved Light Cannon > --- INVENTORY (5) ---- Hover Unit Disposable Heat Sink Sensor Array Improved Targeting Computer Improved Targeting Computer Peak State ------------ > --- POWER ------------ Light Ion Engine > --- PROPULSION ------- Compact Wheel Compact Wheel > --- UTILITY ---------- Medium Storage Unit Improved Targeting Computer Hardened Light Armor Plating Hardened Light Armor Plating > --- WEAPON ----------- Light Assault Rifle Datajack > --- INVENTORY -------- Light Ion Engine Hover Unit Disposable Heat Sink Sensor Array Improved Targeting Computer Improved Targeting Computer [Rating: 12] Favorites ----------- Power Ion Engine Engine Ion Engine Propulsion Compact Wheel Wheel Compact Wheel Flight Unit Flight Unit Utility Small Storage Unit Storage Small Storage Unit Processor Improved Targeting Computer Protection Light Armor Plating Weapon Datajack Energy Gun Medium Laser Ballistic Gun Light Assault Rifle Ballistic Cannon Improved Light Cannon Special Melee Weapon Datajack Build | -11 -10 -9 ------- Run | Yrd Mat Mat Slots Evolved 2 | . . 2 Power . | . . . Propulsion . | . . . Utility 2 | . . 2 Weapon . | . . . Parts Attached 18 | 6 7 5 Power 2 | 1 1 . Engine 2 | 1 1 . Core . | . . . Reactor . | . . . Propulsion 3 | 2 . 1 Treads . | . . . Leg . | . . . Wheel 2 | 2 . . Hover . | . . . Flight 1 | . . 1 Utility 6 | 1 3 2 Device . | . . . Storage 2 | 1 1 . Processor 1 | . . 1 Hackware . | . . . Protection 3 | . 2 1 Artifact . | . . . Weapon 7 | 2 3 2 Energy Gun 2 | 1 1 . Energy Cannon . | . . . Ballistic Gun 2 | 1 1 . Ballistic Cannon 1 | . . 1 Launcher . | . . . Special Weapon . | . . . Impact Weapon . | . . . Slashing Weapon . | . . . Piercing Weapon . | . . . Special Melee Weapon 2 | . 1 1 Unidentified Prototypes . | . . . Parts Lost 10 | . 2 8 Power 1 | . . 1 Propulsion 2 | . . 2 Utility 3 | . . 3 Weapon 4 | . 2 2 Highest Loss Streak 7 | . 2 7 To Critical Strikes . | . . . Average Backups 3 | 2 2 6 Power . | . 1 . Propulsion . | 1 . 1 Utility . | . . 4 Weapon . | . . . Tool/Special . | . . . Unused Backups 4 | . 1 3 Power 1 | . . 1 Propulsion 1 | . . 1 Utility 2 | . 1 1 Weapon . | . . . Tool/Special . | . . . Average Slot Usage (%) 80 | . 85 54 Engine 12 | . 14 7 Wheel 25 | . 28 11 Storage 12 | . 14 7 Processor 1 | . . 7 Protection 4 | . 3 8 Energy Gun 8 | . 10 . Ballistic Gun 4 | . 4 4 Special Melee Weapon 9 | . 10 3 Peak Build Rating 12 | 6 8 12 Average Rating 6 | 3 6 6 On Entrance 4 | . 6 8 Naked Turns . | . . . Heaviest Build 20 | 12 19 20 Greatest Support 32 | 32 32 32 Greatest Overweight (x) 4 | 1 . 4 Average Overweight (x) . | . . . Largest Inventory Capacity 10 | 8 10 10 Average Capacity 8 | 6 8 8 Most Carried 9 | 5 9 8 Average Carried 3 | 2 2 6 Final Capacity 10 | 8 10 5 Final Carried 9 | 1 9 5 Class Distribution -------------------- 100% | Mutant Dominant Class ---------------- Mutant | -10/Materials Mutant | -9/Materials Resources | -11 -10 -9 ----------- Run | Yrd Mat Mat Matter Collected 341 | 198 127 16 Remotely . | . . . Salvage Created 291 | . 154 137 Parts 20 | . 8 12 Haulers Intercepted . | . . . Recyclers Shooed . | . . . Parts Field Recycled . | . . . Retrieved Matter . | . . . Parts Self-Destructed . | . . . Prevented . | . . . Kills | -11 -10 -9 ------- Run | Yrd Mat Mat Combat Hostiles Destroyed 11 | . 5 6 Guns 7 | . 4 3 Cannons 3 | . . 3 Classes Destroyed 4 | . 3 1 Operator 1 | . 1 . Swarmer 7 | . 3 4 Grunt 3 | . 2 1 Sentry 1 | . . 1 Best Kill Streak 3 | . 3 3 Combat Bots Only 3 | . 3 3 Max Kills in Single Turn 1 | . 1 1 Gunslinging . | . . . Exploded . | . . . Melee . | . . . Uniques/NPCs Destroyed . | . . . Combat | -11 -10 -9 -------- Run | Yrd Mat Mat Hostile Shots Fired 170 | . 45 125 Missed 30 | . 7 23 Hits 140 | . 38 102 Projectile 140 | . 38 102 Critical Strikes 4 | . . 4 Damage Taken 1547 | . 423 1124 Core 503 | . 96 407 Absorbed by Shields . | . . . Core Remaining (%) 80 | 100 61 . Volleys Fired 83 | . 49 34 Largest 1 | . 1 1 Hottest 50 | . 50 33 Shots Fired 83 | . 49 34 Gun 68 | . 49 19 Cannon 15 | . . 15 Launcher . | . . . Special . | . . . Kinetic 55 | . 21 34 Thermal 28 | . 28 . Explosive . | . . . Electromagnetic . | . . . Robot Hit Streak 11 | . 11 8 Robot Miss Streak 3 | . 3 2 Penetration Max . | . . . Secondary Targets . | . . . Shots Hit Robots 61 | . 34 27 Core Hits 23 | . 11 12 Critical Kills . | . . . Critical Parts Destroyed 1 | . 1 . Critical Strikes 2 | . 1 1 Destroy 1 | . 1 . Blast 1 | . . 1 Melee Attacks . | . . . Impact . | . . . Slashing . | . . . Piercing . | . . . Sneak Attacks . | . . . Combat Hostiles . | . . . Follow-up Attacks . | . . . Damage Inflicted 780 | . 382 398 Guns 499 | . 380 119 Cannons 273 | . . 273 Explosions . | . . . Melee . | . . . Ramming 8 | . 2 6 Kinetic 533 | . 141 392 Thermal 239 | . 239 . Explosive . | . . . Electromagnetic . | . . . Impact . | . . . Slashing . | . . . Piercing . | . . . Highest Corruption . | . . . Average Corruption . | . . . Corruption Purged . | . . . Corruption Blocked . | . . . Overload Shots . | . . . Overflow Damage 4 | . . 4 Projectiles 4 | . . 4 Explosions . | . . . Melee . | . . . Knockbacks 1 | . . 1 Impact . | . . . Kinetic 1 | . . 1 Secondary . | . . . Self-Inflicted Damage 4 | . 1 3 Shots . | . . . Rammed 3 | . 1 2 Targets Rammed 3 | . 1 2 Kicked . | . . . Crushed . | . . . Highest Temperature 216 | . 216 141 Average Temperature 60 | . 61 56 Received Heat Transfer 543 | . 189 354 Siege Activations . | . . . Martial Activations . | . . . Shielding Activations . | . . . Robots Disrupted . | . . . Combat Hostiles . | . . . Robots Corrupted . | . . . Combat Hostiles . | . . . Parts Fried . | . . . Impact Corruptions . | . . . Robots Melted 1 | . 1 . Combat Hostiles 1 | . 1 . Parts Melted . | . . . Heat Transferred 703 | . 703 . Parts Sabotaged . | . . . Parts Stolen . | . . . Parts Stripped . | . . . Power Chain Reactions . | . . . Alert | -11 -10 -9 ------- Run | Yrd Mat Mat Maximum Alert Level . | . . . Low Security (%) 100 | 100 100 100 Level 1 . | . . . Level 2 . | . . . Level 3 . | . . . Level 4 . | . . . Level 5 . | . . . High Security . | . . . Max Security . | . . . Peak Influence 103 | . 103 83 Initial 33 | . . 33 Average 15 | . 12 38 Influence Increases 339 | . 184 155 Destroy 0b10 Robot/C 220 | . 100 120 Destroy 0b10 Robot/NC 5 | . 5 . Destroy Leader 40 | . 20 20 Successful Hack 14 | . 14 . Disable Machine 15 | . . 15 Lose Combat Pursuer 45 | . 45 . Influence Decreases 274 | . 105 169 Entered New Map 46 | . . 46 Time Decay 134 | . 91 43 Lost Part 94 | . 14 80 Squads Dispatched 3 | . 2 1 Investigation . | . . . Extermination . | . . . Reinforcement 3 | . 2 1 Assault . | . . . Garrison . | . . . Intercept . | . . . Searches Triggered . | . . . Construction Impeded . | . . . Haulers Reinforced . | . . . Active Scanning Responses . | . . . Cargo Convoy Interrupts . | . . . Stealth | -11 -10 -9 --------- Run | Yrd Mat Mat Distress Signals . | . . . Communications Jammed . | . . . Distress Signals . | . . . Times Spotted 23 | . 14 9 Peak Tracking Total 8 | . 6 8 Tactical Retreats 3 | . 3 . Traps | -11 -10 -9 ------- Run | Yrd Mat Mat Traps Triggered . | . . . Indirectly . | . . . Trap Hack Attempts . | . . . Triggered . | . . . Disarmed . | . . . Reprogrammed . | . . . Reused . | . . . Traps Extracted . | . . . Installed . | . . . Triggered . | . . . Machines | -11 -10 -9 ---------- Run | Yrd Mat Mat Machines Disabled 1 | . . 1 Max in Single Turn 1 | . . 1 Machines Repaired . | . . . Machines Dismantled . | . . . Machines Sabotaged . | . . . Overloaded Fab Kills . | . . . Hacking | -11 -10 -9 --------- Run | Yrd Mat Mat Machines Accessed 3 | . 3 . Terminals 2 | . 2 . Fabricators . | . . . Repair Stations . | . . . Recycling Units 1 | . 1 . Scanalyzers . | . . . Garrison Access . | . . . Total Hacks 9 | . 9 . Successful 5 | . 5 . Failed 4 | . 4 . Catastrophic 1 | . 1 . Database Lockouts . | . . . Manual 4 | . 4 . Terminals 7 | . 7 . Fabricators . | . . . Repair Stations . | . . . Recycling Units 2 | . 2 . Scanalyzers . | . . . Garrison Access . | . . . Terminal Hacks 4 | . 4 . Record 1 | . 1 . Level Access Points 1 | . 1 . Emergency Access Points 1 | . 1 . Terminal Index 1 | . 1 . Fabricator Hacks . | . . . Repair Station Hacks . | . . . Recycling Unit Hacks 1 | . 1 . Report Inventory 1 | . 1 . Scanalyzer . | . . . Garrison Access Hacks . | . . . Unauthorized Hacks . | . . . Terminals . | . . . Fabricators . | . . . Repair Stations . | . . . Recycling Units . | . . . Scanalyzers . | . . . Garrison Access . | . . . Data Cores Recovered . | . . . Used . | . . . Hacking Detections 2 | . 2 . Full Trace Events . | . . . Feedback Events . | . . . Feedback Blocked . | . . . Robot Schematics Acquired . | . . . Robots Built . | . . . Authchips . | . . . Time . | . . . Total Robot Build Rating . | . . . Part Schematics Acquired . | . . . Parts Built . | . . . Authchips . | . . . Time . | . . . Total Part Build Rating . | . . . Parts Repaired . | . . . Time . | . . . Parts Recycled . | . . . Recycled Matter . | . . . Retrieved Matter . | . . . Retrieved Components . | . . . Parts Scanalyzed . | . . . Part Schematics Acquired . | . . . Parts Damaged . | . . . Bothacking | -11 -10 -9 ------------ Run | Yrd Mat Mat Used RIF Installer . | . . . Robots Hacked . | . . . Non-combat . | . . . Combat . | . . . Robot Hacks Applied . | . . . Relay Couplers Released . | . . . Fabnet Peak Effective % . | . . . Robots Rewired . | . . . Allies Hacked . | . . . Hacks Repelled . | . . . Allies | -11 -10 -9 -------- Run | Yrd Mat Mat Total Allies . | . . . Largest Group . | . . . Highest-Rated Group . | . . . Highest-Rated Ally . | . . . Total Orders . | . . . Ally Attacks . | . . . Total Damage . | . . . Kills . | . . . Allies Corrupted . | . . . Allies Melted . | . . . Intel | -11 -10 -9 ------- Run | Yrd Mat Mat Active Infowar (turns) . | . . . Robot Analysis Total . | . . . Derelict Logs Recovered . | . . . Drone Launches . | . . . Drone Recoveries . | . . . Exploration | -11 -10 -9 ------------- Run | Yrd Mat Mat Turns Passed 915 | 42 738 135 Spaces Moved 378 | 38 267 73 Core 58 | 21 . 37 Treads . | . . . Legs . | . . . Wheels 320 | 17 267 36 Hover . | . . . Flight . | . . . Fastest Speed 50 | 50 100 50 Average Speed 95 | 78 100 86 Slowest Speed 250 | 100 100 250 Overloaded Moves . | . . . Propulsion Burnouts . | . . . Robots Hopped . | . . . Potential Cave-ins . | . . . Cave-ins Triggered . | . . . Exploration Rate (%) 16 | 4 34 10 Regions Visited 2 Branch Regions . Pre-discovered Areas . | . . . Known Exits Taken 1 | . 1 . Unknown Exits Taken 1 | 1 . . Scrap Searched . | . . . Spaces Dug . | . . . Terrain Destroyed . | . . . Melee . | . . . Projectile . | . . . AOE . | . . . Terrain Rammed . | . . . Walls Destroyed . | . . . Machines Disabled . | . . . Actions | -11 -10 -9 --------- Run | Yrd Mat Mat Total 856 | 48 693 115 Wait 347 | . 347 . Move 376 | 37 266 73 Hop . | . . . Pick Up 21 | 5 16 . Fast Attach 4 | 2 . 2 Attach 10 | 4 3 3 Detach . | . . . Swap 5 | . 5 . Drop 7 | . 6 1 Fire 83 | . 49 34 Melee . | . . . Ram 3 | . 1 2 Kick . | . . . Crush . | . . . Escape Stasis . | . . . Rewire . | . . . Trap . | . . . Miscellaneous . | . . . Route ------- -11/Scrapyard -10/Materials (discovered 3 exits: *Mat x3) -9/Materials History --------- Turn | Location | Event 16 | -11/Scrapyard | Discovered new exit (range 15) 43 | -11/Scrapyard | Entered Materials 73 | -10/Materials | Identified exit to Materials 317 | -10/Materials | Build established: Mutant 781 | -10/Materials | Entered another Materials area 781 | -9/Materials | Evolved 2 slots: Utility x2 863 | -9/Materials | Core integrity fell below 50% 868 | -9/Materials | Core integrity fell below 20% 891 | -9/Materials | Lost 7 parts (1p2n2u2w) 916 | -9/Materials | Destroyed by Y-45 Defender with Beam Rifle Last Messages --------------- 00836_ Lgt. Assault Rifle destroyed. 00838_ Slammed into G-34 Mercenary. 00838_ R-06 Scavenger collects Flight Unit. 00839_ Slammed into G-34 Mercenary. 00840_ Acquired 15 matter. 00840_ Com. Wheel destroyed. 00857_ G-34 Mercenary destroyed. 00858_ Hrd. Light Armor Plating destroyed. 00859_ Com. Wheel destroyed. 00860_ Lgt. Ion Engine destroyed. 00866_ Dropped Med. Storage Unit. 00882_ Acquired Imp. Light Cannon. 00884_ Destroyed Flight Unit. 00888_ S-10 Pest destroyed. 00890_ G-34 Mercenary destroyed. 00892_ Acquired 1 matter. 00894_ Acquired Flight Unit. 00896_ Imp. Targeting Computer destroyed. 00897_ Y-45 Defender destroyed. 00911_ Y-45 Defender Lgt. Treads blasted off. Map ----- +----------------------------------------------------+ | ?????????????????????????????????????????????????? | | ?????????????????????????????????????????????????? | | ?????????????????????????????????????????????????? | | ?????????????????????????????????????????????????? | | ?????????????????????????????????????????????????? | | ?????????????????????????????????????????????????? | | ?????????????????????????????????????????????????? | | ?????????????????????????????????????????????????? | | ?????????????????????????????????????????????????? | | ??????????????????????????????#+#????????????????? | | ?????????????????????????????? ??????????????? | | ?????????????????????????????? ??????????????? | | ?????????????????????????????? "??????????????? | | ?????????????????????????????? "??????????????? | | ?????????????????????????????? """????????????? | | ?????????????????????????????? """????????????? | | ?????????????????????????????# """""??????????? | | ????????????????????????????? """""??????????? | | ????????????????????????????? """"???????????? | | ????????????????????????????? ????????????? | | ????????????????????########## ??????????????? | | ????????????????????# # #???????????????? | | ????????????????????# "" % =#r #???????????????? | | ????????????????????# "T ==/a% +???????????????? | | ????????????????????# ""% [Y# #???????????????? | | ????????????????????# @ %*# #???????????????? | | ????????????????????# ""%% # #???????????????? | | ????????????????????# """ # #???????????????? | | ????????????????????# """ %%# #???????????????? | | ????????????????????# #* #???????????????? | | ????????????????????##########! #???????????????? | | ?????????????????????????????# #???????????????? | | ?????????????????????????????# #??????""#??? ??? | | ????????????????????????????## ##????"R"#?? ??? | | ????????????????????????????# #####" "## ??? | | ????????????????????????????# ???? | | ????????????????????????????# ???? | | ?????????????????????######## """ """???? | | ?????????????? =%[ """ "R" +? | | ?????????????????????## #########= """ " " #? | | ????????????????????????????????# #? | | ????????????????????????????????# #? | | ????????????????????????????????#### ######+#?? | | ???????????????????????????????????# #????????? | | ???????????????????????????????????# #????????? | | ???????????????????????????????????# #????????? | | ???????????????????????????????????#/##+###??????? | | ???????????????????????????????????#* % #??????? | | ???????????????????????????????????# #??????? | | ???????????????????????????????????# %[ #??????? | +----------------------------------------------------+ Best States ------------- Heat Dissipation 28 Energy Generation 10 Energy Capacity 250 Matter Stores 300 Matter Capacity 300 Sight Range 16 Terrain Scan Density 10 Armor Coverage 300 Evasion (%) 50 Targeting Accuracy 6 Item Schematics ----------------- None Robot Schematics ------------------ None Fabricated ------------ Nothing Repaired ---------- Nothing Alien Tech Used ----------------- None Achievements -------------- None Challenges ------------ None Game ------ Seed OpticalZhirovBeamcaster Manual? 0 Play Time 00:10:29 Cumulative 31.8 hours Start 2025.08.24 @ 18:18:46 End 2025.08.24 @ 18:28:24 Sessions 1 Manual Loads 0 Difficulty Rogue Special Mode None Game No. 42 Rogue 42 Adventurer 0 Explorer 0 Win Type - Total 0 Types 0/0/0/0/0/0/0/0/0/0 Lore% 16 Gallery% 30 Achievement% 25 Wizard Run 0 Options --------- Layout 1 ASCII 0 Keyboard 0 Movement Mouse Keybinds 0 Fullscreen 1 Font 32/SmallcapsGlow Map View 50x35 Zoom Use 0% Tactical HUD 1 Map Filters NONE Filters NONE Steam 1 RUN: 73a39e0e-9a9c-46c5-a131-43d6fa0fe26b